[Event "Titled Tuesday Blitz November 15 Early 2022"]
[White "Lauridsen, Jesper Morch"]
[Black "Sowul, Bartosz"]
[WhiteFideId "1401890"]
[BlackFideId "1137590"]
[WhiteElo "2220"]
[BlackElo "2188"]
[Result "0-1"]
[Round "02"]
[TimeControl "180+1"]
[Date "2022.11.16"]
[WhiteClock "0:00:03"]
[BlackClock "0:00:19"]

1. e4 {[%clk 0:02:57]}  c5 {[%clk 0:02:59]} 2. Nf3 {[%clk 0:02:56]}  d6 {[%clk 0:02:59]} 3. d4 {[%clk 0:02:56]}  cxd4 {[%clk 0:03:00]} 4. Nxd4 {[%clk 0:02:56]}  Nf6 {[%clk 0:03:00]} 5. Nc3 {[%clk 0:02:56]}  Nc6 {[%clk 0:03:01]} 6. Bg5 {[%clk 0:02:54]}  g6 {[%clk 0:03:01]} 7. Bxf6 {[%clk 0:02:53]}  exf6 {[%clk 0:03:02]} 8. Bc4 {[%clk 0:02:51]}  Bg7 {[%clk 0:03:01]} 9. O-O {[%clk 0:02:48]}  O-O {[%clk 0:02:58]} 10. Ndb5 {[%clk 0:02:42]}  f5 {[%clk 0:02:46]} 11. Nxd6 {[%clk 0:02:41]}  Be5 {[%clk 0:02:37]} 12. Nxc8 {[%clk 0:02:36]}  Rxc8 {[%clk 0:02:35]} 13. Qxd8 {[%clk 0:02:29]}  Nxd8 {[%clk 0:02:36]} 14. Bd3 {[%clk 0:02:24]}  Bxc3 {[%clk 0:02:28]} 15. bxc3 {[%clk 0:02:24]}  f4 {[%clk 0:02:26]} 16. c4 {[%clk 0:02:12]}  Kg7 {[%clk 0:02:21]} 17. Rfb1 {[%clk 0:02:11]}  b6 {[%clk 0:02:16]} 18. a4 {[%clk 0:02:10]}  Nb7 {[%clk 0:02:09]} 19. Rb5 {[%clk 0:02:01]}  Rfd8 {[%clk 0:01:51]} 20. f3 {[%clk 0:01:51]}  Na5 {[%clk 0:01:33]} 21. g3 {[%clk 0:01:27]}  fxg3 {[%clk 0:01:28]} 22. hxg3 {[%clk 0:01:26]}  Nxc4 {[%clk 0:01:28]} 23. Kf2 {[%clk 0:01:14]}  Na5 {[%clk 0:01:13]} 24. Rd5 {[%clk 0:01:02]}  Rxd5 {[%clk 0:00:55]} 25. exd5 {[%clk 0:01:02]}  Rc5 {[%clk 0:00:55]} 26. c4 {[%clk 0:00:51]}  Nxc4 {[%clk 0:00:54]} 27. Bxc4 {[%clk 0:00:50]}  Rxc4 {[%clk 0:00:55]} 28. a5 {[%clk 0:00:49]}  Rd4 {[%clk 0:00:48]} 29. axb6 {[%clk 0:00:45]}  axb6 {[%clk 0:00:48]} 30. Rb1 {[%clk 0:00:43]}  Rxd5 {[%clk 0:00:45]} 31. Rxb6 {[%clk 0:00:43]}  Rd3 {[%clk 0:00:43]} 32. g4 {[%clk 0:00:41]}  h6 {[%clk 0:00:41]} 33. Kg3 {[%clk 0:00:40]}  Re3 {[%clk 0:00:41]} 34. Kf4 {[%clk 0:00:39]}  Re7 {[%clk 0:00:38]} 35. Ra6 {[%clk 0:00:39]}  Kf8 {[%clk 0:00:36]} 36. Ra8+ {[%clk 0:00:38]}  Re8 {[%clk 0:00:37]} 37. Ra7 {[%clk 0:00:37]}  Re6 {[%clk 0:00:37]} 38. Rb7 {[%clk 0:00:37]}  Kg7 {[%clk 0:00:25]} 39. Ra7 {[%clk 0:00:37]}  Kf6 {[%clk 0:00:24]} 40. Rb7 {[%clk 0:00:37]}  Rc6 {[%clk 0:00:22]} 41. Ra7 {[%clk 0:00:36]}  g5+ {[%clk 0:00:21]} 42. Kg3 {[%clk 0:00:35]}  Kg6 {[%clk 0:00:21]} 43. Rb7 {[%clk 0:00:35]}  f6 {[%clk 0:00:22]} 44. Ra7 {[%clk 0:00:35]}  h5 {[%clk 0:00:21]} 45. gxh5+ {[%clk 0:00:33]}  Kxh5 {[%clk 0:00:22]} 46. Rb7 {[%clk 0:00:31]}  Kg6 {[%clk 0:00:22]} 47. Ra7 {[%clk 0:00:31]}  Rc5 {[%clk 0:00:23]} 48. Rb7 {[%clk 0:00:29]}  Kf5 {[%clk 0:00:23]} 49. Ra7 {[%clk 0:00:26]}  Rd5 {[%clk 0:00:24]} 50. Rb7 {[%clk 0:00:26]}  Ke5 {[%clk 0:00:24]} 51. Re7+ {[%clk 0:00:22]}  Kd4 {[%clk 0:00:23]} 52. Re6 {[%clk 0:00:18]}  Rf5 {[%clk 0:00:24]} 53. Re8 {[%clk 0:00:17]}  Rf4 {[%clk 0:00:23]} 54. Re6 {[%clk 0:00:16]}  Kd3 {[%clk 0:00:23]} 55. Re8 {[%clk 0:00:14]}  Kd4 {[%clk 0:00:22]} 56. Re7 {[%clk 0:00:14]}  Kd5 {[%clk 0:00:23]} 57. Re8 {[%clk 0:00:15]}  Rf5 {[%clk 0:00:23]} 58. Kg4 {[%clk 0:00:13]}  Rf4+ {[%clk 0:00:20]} 59. Kg3 {[%clk 0:00:12]}  Kd6 {[%clk 0:00:20]} 60. Re1 {[%clk 0:00:12]}  Rf5 {[%clk 0:00:20]} 61. Kg4 {[%clk 0:00:10]}  Re5 {[%clk 0:00:20]} 62. Rd1+ {[%clk 0:00:09]}  Ke6 {[%clk 0:00:20]} 63. Ra1 {[%clk 0:00:06]}  Kf7 {[%clk 0:00:20]} 64. Ra7+ {[%clk 0:00:06]}  Kg6 {[%clk 0:00:20]} 65. Ra6 {[%clk 0:00:06]}  Rd5 {[%clk 0:00:20]} 66. Rb6 {[%clk 0:00:06]}  Rd4+ {[%clk 0:00:20]} 67. Kg3 {[%clk 0:00:06]}  Rd3 {[%clk 0:00:21]} 68. Rb5 {[%clk 0:00:05]}  f5 {[%clk 0:00:20]} 69. Rb6+ {[%clk 0:00:05]}  Kh5 {[%clk 0:00:21]} 70. Rb5 {[%clk 0:00:05]}  f4+ {[%clk 0:00:21]} 71. Kg2 {[%clk 0:00:05]}  Kh4 {[%clk 0:00:21]} 72. Rb1 {[%clk 0:00:04]}  Rd2+ {[%clk 0:00:21]} 73. Kg1 {[%clk 0:00:03]}  Kg3 {[%clk 0:00:20]} 74. Rb5 {[%clk 0:00:03]}  Rd1# {[%clk 0:00:19]} 0-1


[Site "https://www.chess.com"]

[Event "Titled Tuesday Blitz November 15 Early 2022"]
[White "Leiva, Gianmarco"]
[Black "Lorenzo De La Riva, Lazaro"]
[WhiteFideId "3804399"]
[BlackFideId "2268809"]
[WhiteElo "2286"]
[BlackElo "2294"]
[Result "1-0"]
[Round "02"]
[TimeControl "180+1"]
[Date "2022.11.16"]
[WhiteClock "0:00:10"]
[BlackClock "0:00:04"]

1. e4 {[%clk 0:02:52]}  d5 {[%clk 0:02:51]} 2. exd5 {[%clk 0:02:52]}  Nf6 {[%clk 0:02:51]} 3. d4 {[%clk 0:02:52]}  c6 {[%clk 0:02:51]} 4. dxc6 {[%clk 0:02:47]}  Nxc6 {[%clk 0:02:52]} 5. Nf3 {[%clk 0:02:43]}  Bg4 {[%clk 0:02:48]} 6. Be2 {[%clk 0:02:38]}  Qd7 {[%clk 0:02:30]} 7. O-O {[%clk 0:02:36]}  O-O-O {[%clk 0:02:30]} 8. c3 {[%clk 0:02:30]}  Qf5 {[%clk 0:02:24]} 9. Nh4 {[%clk 0:02:12]}  Qh5 {[%clk 0:02:11]} 10. Bxg4+ {[%clk 0:02:12]}  Nxg4 {[%clk 0:02:09]} 11. h3 {[%clk 0:02:12]}  Qxh4 {[%clk 0:02:06]} 12. Qxg4+ {[%clk 0:02:12]}  Qxg4 {[%clk 0:02:06]} 13. hxg4 {[%clk 0:02:13]}  e5 {[%clk 0:02:05]} 14. dxe5 {[%clk 0:02:14]}  Nxe5 {[%clk 0:02:04]} 15. Be3 {[%clk 0:02:04]}  b6 {[%clk 0:01:57]} 16. f3 {[%clk 0:02:00]}  Nc4 {[%clk 0:01:56]} 17. Bd4 {[%clk 0:02:00]}  Nxb2 {[%clk 0:01:50]} 18. Nd2 {[%clk 0:01:59]}  Nd3 {[%clk 0:01:30]} 19. Ne4 {[%clk 0:01:53]}  f6 {[%clk 0:01:29]} 20. Rfd1 {[%clk 0:01:40]}  Nc5 {[%clk 0:01:24]} 21. Nxc5 {[%clk 0:01:31]}  Bxc5 {[%clk 0:01:21]} 22. Bxc5 {[%clk 0:01:31]}  bxc5 {[%clk 0:01:22]} 23. Kf2 {[%clk 0:01:25]}  Kc7 {[%clk 0:01:21]} 24. Rab1 {[%clk 0:01:18]}  Kc6 {[%clk 0:01:19]} 25. Kg3 {[%clk 0:01:14]}  Rd5 {[%clk 0:01:07]} 26. Rxd5 {[%clk 0:01:13]}  Kxd5 {[%clk 0:01:05]} 27. Rb7 {[%clk 0:01:14]}  Kc4 {[%clk 0:01:02]} 28. Rxg7 {[%clk 0:01:13]}  Kxc3 {[%clk 0:01:01]} 29. Rxa7 {[%clk 0:01:14]}  c4 {[%clk 0:01:01]} 30. Rf7 {[%clk 0:01:10]}  Kb2 {[%clk 0:00:58]} 31. Rxf6 {[%clk 0:01:01]}  c3 {[%clk 0:00:58]} 32. Rc6 {[%clk 0:00:58]}  c2 {[%clk 0:00:51]} 33. f4 {[%clk 0:00:52]}  Ra8 {[%clk 0:00:49]} 34. Kh4 {[%clk 0:00:49]}  Ra3 {[%clk 0:00:42]} 35. Rxc2+ {[%clk 0:00:47]}  Kxc2 {[%clk 0:00:43]} 36. f5 {[%clk 0:00:47]}  Kd3 {[%clk 0:00:34]} 37. Kg5 {[%clk 0:00:41]}  Ke4 {[%clk 0:00:24]} 38. Kh6 {[%clk 0:00:39]}  Ke5 {[%clk 0:00:13]} 39. Kxh7 {[%clk 0:00:36]}  Kf6 {[%clk 0:00:13]} 40. Kh6 {[%clk 0:00:14]}  Rxa2 {[%clk 0:00:12]} 41. g5+ {[%clk 0:00:14]}  Kxf5 {[%clk 0:00:12]} 42. g4+ {[%clk 0:00:13]}  Kxg4 {[%clk 0:00:08]} 43. g6 {[%clk 0:00:14]}  Ra6 {[%clk 0:00:08]} 44. Kh7 {[%clk 0:00:14]}  Kg5 {[%clk 0:00:05]} 45. g7 {[%clk 0:00:14]}  Rh6+ {[%clk 0:00:05]} 46. Kg8 {[%clk 0:00:13]}  Kg6 {[%clk 0:00:01]} 47. Kf8 {[%clk 0:00:14]}  Rh7 {[%clk 0:00:02]} 48. g8=Q+ {[%clk 0:00:14]}  Kh6 {[%clk 0:00:02]} 49. Qg4 {[%clk 0:00:09]}  Ra7 {[%clk 0:00:02]} 50. Qe6+ {[%clk 0:00:06]}  Kh5 {[%clk 0:00:02]} 51. Qe5+ {[%clk 0:00:06]}  Kh6 {[%clk 0:00:02]} 52. Qd6+ {[%clk 0:00:07]}  Kh5 {[%clk 0:00:02]} 53. Qc5+ {[%clk 0:00:08]}  Kh6 {[%clk 0:00:02]} 54. Qxa7 {[%clk 0:00:08]}  Kh5 {[%clk 0:00:03]} 55. Qg7 {[%clk 0:00:09]}  Kh4 {[%clk 0:00:03]} 56. Kf7 {[%clk 0:00:09]}  Kh3 {[%clk 0:00:04]} 57. Kf6 {[%clk 0:00:10]} 1-0


[Site "https://www.chess.com"]

[Event "Titled Tuesday Blitz November 15 Early 2022"]
[White "Lenderman, Aleksandr"]
[Black "Ingebretsen, Jens E"]
[WhiteFideId "2021285"]
[BlackFideId "1522965"]
[WhiteElo "2607"]
[BlackElo "2213"]
[Result "1-0"]
[Round "02"]
[TimeControl "180+1"]
[Date "2022.11.15"]
[WhiteClock "0:02:21"]
[BlackClock "0:02:00"]

1. e4 {[%clk 0:03:00]}  c5 {[%clk 0:02:48]} 2. c3 {[%clk 0:03:01]}  Nc6 {[%clk 0:02:48]} 3. d4 {[%clk 0:03:00]}  d5 {[%clk 0:02:47]} 4. dxc5 {[%clk 0:02:53]}  dxe4 {[%clk 0:02:46]} 5. Qxd8+ {[%clk 0:02:54]}  Kxd8 {[%clk 0:02:47]} 6. Be3 {[%clk 0:02:46]}  Nf6 {[%clk 0:02:45]} 7. Nd2 {[%clk 0:02:45]}  a5 {[%clk 0:02:44]} 8. O-O-O {[%clk 0:02:43]}  Kc7 {[%clk 0:02:38]} 9. Nc4 {[%clk 0:02:43]}  e5 {[%clk 0:02:23]} 10. Nb6 {[%clk 0:02:37]}  Rb8 {[%clk 0:02:23]} 11. Bc4 {[%clk 0:02:34]}  Be6 {[%clk 0:02:21]} 12. Bxe6 {[%clk 0:02:33]}  fxe6 {[%clk 0:02:22]} 13. Nh3 {[%clk 0:02:31]}  h6 {[%clk 0:02:20]} 14. Rd2 {[%clk 0:02:22]}  Be7 {[%clk 0:02:19]} 15. Rhd1 {[%clk 0:02:23]}  Rhd8 {[%clk 0:02:18]} 16. Ng1 {[%clk 0:02:21]}  Ng4 {[%clk 0:02:00]} 17. Rd7+ {[%clk 0:02:21]} 1-0


[Site "https://www.chess.com"]

[Event "Titled Tuesday Blitz November 15 Early 2022"]
[White "Levitan, Caleb Levi"]
[Black "Slugin, Sergey"]
[WhiteFideId "14332620"]
[BlackFideId "4122569"]
[WhiteElo "1963"]
[BlackElo "2330"]
[Result "0-1"]
[Round "02"]
[TimeControl "180+1"]
[Date "2022.11.16"]
[WhiteClock "0:00:01"]
[BlackClock "0:00:08"]

1. e4 {[%clk 0:02:59]}  e5 {[%clk 0:03:00]} 2. Nf3 {[%clk 0:02:59]}  Nc6 {[%clk 0:03:00]} 3. Bb5 {[%clk 0:02:59]}  a6 {[%clk 0:02:58]} 4. Ba4 {[%clk 0:02:58]}  d6 {[%clk 0:02:58]} 5. c3 {[%clk 0:02:40]}  g5 {[%clk 0:02:58]} 6. d4 {[%clk 0:02:23]}  g4 {[%clk 0:02:58]} 7. Ng1 {[%clk 0:02:13]}  Bg7 {[%clk 0:02:57]} 8. Ne2 {[%clk 0:02:13]}  Ne7 {[%clk 0:02:57]} 9. Be3 {[%clk 0:02:12]}  O-O {[%clk 0:02:57]} 10. O-O {[%clk 0:02:02]}  f5 {[%clk 0:02:56]} 11. exf5 {[%clk 0:02:01]}  Nxf5 {[%clk 0:02:56]} 12. Ng3 {[%clk 0:01:47]}  exd4 {[%clk 0:02:33]} 13. Nxf5 {[%clk 0:01:43]}  Bxf5 {[%clk 0:02:34]} 14. cxd4 {[%clk 0:01:37]}  Qf6 {[%clk 0:02:16]} 15. Bxc6 {[%clk 0:01:27]}  bxc6 {[%clk 0:02:16]} 16. Nc3 {[%clk 0:01:23]}  Rab8 {[%clk 0:02:17]} 17. Qd2 {[%clk 0:01:21]}  h5 {[%clk 0:02:16]} 18. Rfe1 {[%clk 0:01:10]}  h4 {[%clk 0:02:14]} 19. Rad1 {[%clk 0:01:00]}  h3 {[%clk 0:02:15]} 20. b3 {[%clk 0:00:28]}  Bg6 {[%clk 0:02:02]} 21. Bg5 {[%clk 0:00:25]}  Qf5 {[%clk 0:02:03]} 22. Re7 {[%clk 0:00:20]}  Rbe8 {[%clk 0:02:00]} 23. Rxc7 {[%clk 0:00:18]}  c5 {[%clk 0:01:46]} 24. Be3 {[%clk 0:00:12]}  Re6 {[%clk 0:00:58]} 25. Rxg7+ {[%clk 0:00:11]}  Kxg7 {[%clk 0:00:58]} 26. Bh6+ {[%clk 0:00:11]}  Kh7 {[%clk 0:00:48]} 27. Bxf8 {[%clk 0:00:11]}  Qxf8 {[%clk 0:00:49]} 28. dxc5 {[%clk 0:00:11]}  dxc5 {[%clk 0:00:40]} 29. Nd5 {[%clk 0:00:10]}  hxg2 {[%clk 0:00:34]} 30. Nf4 {[%clk 0:00:09]}  Rf6 {[%clk 0:00:30]} 31. Nxg6 {[%clk 0:00:09]}  Kxg6 {[%clk 0:00:29]} 32. Qd3+ {[%clk 0:00:09]}  Kg5 {[%clk 0:00:28]} 33. Qg3 {[%clk 0:00:08]}  Rf5 {[%clk 0:00:23]} 34. Kxg2 {[%clk 0:00:06]}  Qa8+ {[%clk 0:00:24]} 35. Kg1 {[%clk 0:00:06]}  Qe4 {[%clk 0:00:24]} 36. Qe3+ {[%clk 0:00:06]}  Qxe3 {[%clk 0:00:24]} 37. fxe3 {[%clk 0:00:07]}  Rf3 {[%clk 0:00:23]} 38. Rd5+ {[%clk 0:00:07]}  Kh4 {[%clk 0:00:22]} 39. Rxc5 {[%clk 0:00:07]}  Rxe3 {[%clk 0:00:22]} 40. Rc2 {[%clk 0:00:06]}  Kh3 {[%clk 0:00:21]} 41. Kf2 {[%clk 0:00:04]}  Rd3 {[%clk 0:00:19]} 42. Kg1 {[%clk 0:00:03]}  Rd1+ {[%clk 0:00:18]} 43. Kf2 {[%clk 0:00:03]}  Kxh2 {[%clk 0:00:18]} 44. b4 {[%clk 0:00:03]}  Rb1 {[%clk 0:00:12]} 45. Ke3+ {[%clk 0:00:02]}  Kh3 {[%clk 0:00:11]} 46. a3 {[%clk 0:00:02]}  Rb3+ {[%clk 0:00:10]} 47. Kf4 {[%clk 0:00:02]}  Rxa3 {[%clk 0:00:11]} 48. Rc6 {[%clk 0:00:01]}  Rf3+ {[%clk 0:00:11]} 49. Ke4 {[%clk 0:00:01]}  Rb3 {[%clk 0:00:09]} 50. Rxa6 {[%clk 0:00:01]}  Rxb4+ {[%clk 0:00:09]} 51. Ke3 {[%clk 0:00:01]}  Rb3+ {[%clk 0:00:08]} 52. Kf2 {[%clk 0:00:01]}  Rb2+ {[%clk 0:00:05]} 53. Kg1 {[%clk 0:00:01]}  Rb1+ {[%clk 0:00:06]} 54. Kf2 {[%clk 0:00:01]}  g3+ {[%clk 0:00:07]} 55. Ke2 {[%clk 0:00:02]}  g2 {[%clk 0:00:05]} 56. Rh6+ {[%clk 0:00:02]}  Kg3 {[%clk 0:00:06]} 57. Rg6+ {[%clk 0:00:02]}  Kh2 {[%clk 0:00:06]} 58. Rh6+ {[%clk 0:00:01]}  Kg1 {[%clk 0:00:07]} 59. Rg6 {[%clk 0:00:01]}  Rb8 {[%clk 0:00:08]} 0-1


[Site "https://www.chess.com"]

[Event "Titled Tuesday Blitz November 15 Early 2022"]
[White "Lopez Del Alamo, Antonio"]
[Black "Lehtosaari, Mauri"]
[WhiteFideId "2227339"]
[BlackFideId "501999"]
[WhiteElo "2175"]
[BlackElo "2509"]
[Result "1-0"]
[Round "02"]
[TimeControl "180+1"]
[Date "2022.11.16"]
[WhiteClock "0:00:57"]
[BlackClock "0:00:22"]

1. e4 {[%clk 0:02:52]}  c5 {[%clk 0:02:57]} 2. Nf3 {[%clk 0:02:47]}  e6 {[%clk 0:02:57]} 3. d3 {[%clk 0:02:43]}  Nc6 {[%clk 0:02:46]} 4. g3 {[%clk 0:02:23]}  d5 {[%clk 0:02:44]} 5. Nbd2 {[%clk 0:02:13]}  Nf6 {[%clk 0:02:31]} 6. Bg2 {[%clk 0:02:13]}  Be7 {[%clk 0:02:19]} 7. O-O {[%clk 0:02:13]}  O-O {[%clk 0:02:19]} 8. e5 {[%clk 0:02:11]}  Nd7 {[%clk 0:02:18]} 9. Re1 {[%clk 0:02:12]}  b5 {[%clk 0:02:17]} 10. Nf1 {[%clk 0:02:12]}  b4 {[%clk 0:02:17]} 11. h4 {[%clk 0:02:11]}  a5 {[%clk 0:02:15]} 12. Bf4 {[%clk 0:02:11]}  a4 {[%clk 0:02:13]} 13. a3 {[%clk 0:02:06]}  Bb7 {[%clk 0:02:08]} 14. N1h2 {[%clk 0:02:03]}  bxa3 {[%clk 0:01:52]} 15. bxa3 {[%clk 0:02:01]}  Re8 {[%clk 0:01:41]} 16. c3 {[%clk 0:01:52]}  Qa5 {[%clk 0:01:40]} 17. Bd2 {[%clk 0:01:43]}  Qa6 {[%clk 0:01:37]} 18. Bf1 {[%clk 0:01:41]}  Qa7 {[%clk 0:01:36]} 19. Bf4 {[%clk 0:01:32]}  Na5 {[%clk 0:01:29]} 20. Ng5 {[%clk 0:01:30]}  h6 {[%clk 0:01:25]} 21. Qh5 {[%clk 0:01:25]}  hxg5 {[%clk 0:01:22]} 22. hxg5 {[%clk 0:01:26]}  g6 {[%clk 0:01:00]} 23. Qh3 {[%clk 0:01:23]}  Bf8 {[%clk 0:00:58]} 24. Ng4 {[%clk 0:01:21]}  Bg7 {[%clk 0:00:59]} 25. Nf6+ {[%clk 0:01:17]}  Nxf6 {[%clk 0:00:53]} 26. gxf6 {[%clk 0:01:12]}  Bh8 {[%clk 0:00:38]} 27. Ra2 {[%clk 0:01:07]}  d4 {[%clk 0:00:37]} 28. c4 {[%clk 0:01:03]}  Qa6 {[%clk 0:00:34]} 29. f3 {[%clk 0:00:58]}  Qb6 {[%clk 0:00:22]} 30. Rh2 {[%clk 0:00:57]} 1-0


[Site "https://www.chess.com"]

[Event "Titled Tuesday Blitz November 15 Early 2022"]
[White "Maksimovic, Bojan"]
[Black "Przybylski, Wojciech"]
[WhiteFideId "14408120"]
[BlackFideId "1117599"]
[WhiteElo "2447"]
[BlackElo "2221"]
[Result "0-1"]
[Round "02"]
[TimeControl "180+1"]
[Date "2022.11.16"]
[WhiteClock "0:00:05"]
[BlackClock "0:00:17"]

1. e4 {[%clk 0:03:00]}  e5 {[%clk 0:02:59]} 2. Nf3 {[%clk 0:02:59]}  Nc6 {[%clk 0:02:59]} 3. d4 {[%clk 0:02:58]}  exd4 {[%clk 0:02:59]} 4. Bc4 {[%clk 0:02:58]}  Nf6 {[%clk 0:02:59]} 5. e5 {[%clk 0:02:58]}  d5 {[%clk 0:02:59]} 6. Bb5 {[%clk 0:02:58]}  Nd7 {[%clk 0:02:59]} 7. O-O {[%clk 0:02:35]}  Be7 {[%clk 0:02:56]} 8. Bxc6 {[%clk 0:02:30]}  bxc6 {[%clk 0:02:53]} 9. Nxd4 {[%clk 0:02:27]}  Nb8 {[%clk 0:02:53]} 10. Nc3 {[%clk 0:02:20]}  O-O {[%clk 0:02:52]} 11. Re1 {[%clk 0:01:54]}  c5 {[%clk 0:02:51]} 12. Nb3 {[%clk 0:01:53]}  c6 {[%clk 0:02:33]} 13. Bf4 {[%clk 0:01:52]}  Na6 {[%clk 0:02:30]} 14. Qf3 {[%clk 0:01:51]}  Qd7 {[%clk 0:02:23]} 15. h3 {[%clk 0:01:48]}  Qf5 {[%clk 0:02:22]} 16. Re2 {[%clk 0:01:31]}  g5 {[%clk 0:02:19]} 17. Bg3 {[%clk 0:01:24]}  Qxf3 {[%clk 0:02:18]} 18. gxf3 {[%clk 0:01:25]}  Bxh3 {[%clk 0:02:17]} 19. Rae1 {[%clk 0:01:22]}  Nc7 {[%clk 0:02:03]} 20. Na5 {[%clk 0:01:10]}  Bd7 {[%clk 0:02:02]} 21. Rd1 {[%clk 0:01:04]}  Ne6 {[%clk 0:01:58]} 22. Ne4 {[%clk 0:01:04]}  Nd4 {[%clk 0:01:58]} 23. Rxd4 {[%clk 0:00:58]}  cxd4 {[%clk 0:01:58]} 24. Nf6+ {[%clk 0:00:56]}  Bxf6 {[%clk 0:01:55]} 25. exf6 {[%clk 0:00:57]}  Rfe8 {[%clk 0:01:51]} 26. Re7 {[%clk 0:00:42]}  Rxe7 {[%clk 0:01:42]} 27. fxe7 {[%clk 0:00:43]}  Re8 {[%clk 0:01:41]} 28. Bd6 {[%clk 0:00:42]}  Bf5 {[%clk 0:01:37]} 29. Nxc6 {[%clk 0:00:39]}  Bxc2 {[%clk 0:01:34]} 30. Nb4 {[%clk 0:00:33]}  d3 {[%clk 0:01:19]} 31. Nxd5 {[%clk 0:00:27]}  Kg7 {[%clk 0:01:12]} 32. Bb4 {[%clk 0:00:18]}  f6 {[%clk 0:00:51]} 33. Kf1 {[%clk 0:00:18]}  Kf7 {[%clk 0:00:48]} 34. Ke1 {[%clk 0:00:17]}  Bb1 {[%clk 0:00:41]} 35. a4 {[%clk 0:00:17]}  Rc8 {[%clk 0:00:38]} 36. Kd2 {[%clk 0:00:16]}  a5 {[%clk 0:00:31]} 37. Bxa5 {[%clk 0:00:16]}  Ba2 {[%clk 0:00:29]} 38. Nc3 {[%clk 0:00:15]}  Bc4 {[%clk 0:00:26]} 39. Bb4 {[%clk 0:00:15]}  Rb8 {[%clk 0:00:24]} 40. Ba3 {[%clk 0:00:15]}  h5 {[%clk 0:00:24]} 41. Kc1 {[%clk 0:00:14]}  h4 {[%clk 0:00:24]} 42. Ne4 {[%clk 0:00:14]}  h3 {[%clk 0:00:19]} 43. Nd6+ {[%clk 0:00:13]}  Ke6 {[%clk 0:00:20]} 44. Nxc4 {[%clk 0:00:10]}  h2 {[%clk 0:00:20]} 45. Kd2 {[%clk 0:00:08]}  h1=Q {[%clk 0:00:19]} 46. Nd6 {[%clk 0:00:07]}  Qf1 {[%clk 0:00:18]} 47. Ne4 {[%clk 0:00:07]}  Qe2+ {[%clk 0:00:18]} 48. Kc3 {[%clk 0:00:07]}  Rc8+ {[%clk 0:00:17]} 49. Kb4 {[%clk 0:00:06]}  d2 {[%clk 0:00:17]} 50. a5 {[%clk 0:00:05]}  Qc4# {[%clk 0:00:17]} 0-1


[Site "https://www.chess.com"]

[Event "Titled Tuesday Blitz November 15 Early 2022"]
[White "Malka, Samuel"]
[Black "De Arruda, Leandro Formes"]
[WhiteFideId "20643675"]
[BlackFideId "22722009"]
[WhiteElo "2458"]
[BlackElo "1880"]
[Result "1-0"]
[Round "02"]
[TimeControl "180+1"]
[Date "2022.11.16"]
[WhiteClock "0:01:15"]
[BlackClock "0:02:04"]

1. Nf3 {[%clk 0:03:00]}  d5 {[%clk 0:02:59]} 2. g3 {[%clk 0:03:00]}  Nf6 {[%clk 0:03:00]} 3. Bg2 {[%clk 0:03:00]}  Nbd7 {[%clk 0:03:00]} 4. O-O {[%clk 0:02:50]}  e5 {[%clk 0:03:00]} 5. d3 {[%clk 0:02:48]}  Be7 {[%clk 0:02:55]} 6. e4 {[%clk 0:02:34]}  dxe4 {[%clk 0:02:51]} 7. dxe4 {[%clk 0:02:34]}  O-O {[%clk 0:02:52]} 8. Nc3 {[%clk 0:02:17]}  b6 {[%clk 0:02:48]} 9. Be3 {[%clk 0:02:02]}  Bb7 {[%clk 0:02:47]} 10. Re1 {[%clk 0:02:03]}  Nxe4 {[%clk 0:02:31]} 11. Nxe4 {[%clk 0:01:51]}  Bxe4 {[%clk 0:02:32]} 12. Qe2 {[%clk 0:01:24]}  f6 {[%clk 0:02:16]} 13. Qc4+ {[%clk 0:01:21]}  Kh8 {[%clk 0:02:14]} 14. Qxe4 {[%clk 0:01:21]}  Qe8 {[%clk 0:02:14]} 15. Rad1 {[%clk 0:01:18]}  Nc5 {[%clk 0:02:09]} 16. Qc4 {[%clk 0:01:16]}  Qg6 {[%clk 0:02:04]} 17. Nh4 {[%clk 0:01:15]} 1-0


[Site "https://www.chess.com"]

[Event "Titled Tuesday Blitz November 15 Early 2022"]
[White "Manelyuk, Daniil"]
[Black "Kosakowski, Jakub"]
[WhiteFideId "44173920"]
[BlackFideId "1185080"]
[WhiteElo "2209"]
[BlackElo "2463"]
[Result "0-1"]
[Round "02"]
[TimeControl "180+1"]
[Date "2022.11.16"]
[WhiteClock "0:00:02"]
[BlackClock "0:00:11"]

1. e4 {[%clk 0:02:51]}  c5 {[%clk 0:02:53]} 2. Nf3 {[%clk 0:02:51]}  Nc6 {[%clk 0:02:53]} 3. d4 {[%clk 0:02:51]}  cxd4 {[%clk 0:02:53]} 4. Nxd4 {[%clk 0:02:51]}  Qb6 {[%clk 0:02:52]} 5. Nb3 {[%clk 0:02:50]}  Nf6 {[%clk 0:02:51]} 6. Nc3 {[%clk 0:02:49]}  e6 {[%clk 0:02:51]} 7. Be3 {[%clk 0:02:48]}  Qc7 {[%clk 0:02:50]} 8. f3 {[%clk 0:02:44]}  a6 {[%clk 0:02:48]} 9. Qd2 {[%clk 0:02:42]}  b5 {[%clk 0:02:48]} 10. Be2 {[%clk 0:02:37]}  Bb7 {[%clk 0:02:37]} 11. O-O {[%clk 0:02:33]}  Be7 {[%clk 0:02:34]} 12. Rad1 {[%clk 0:02:30]}  O-O {[%clk 0:02:31]} 13. a3 {[%clk 0:02:27]}  Ne5 {[%clk 0:02:27]} 14. Kh1 {[%clk 0:02:12]}  Rfd8 {[%clk 0:02:22]} 15. Nd4 {[%clk 0:01:58]}  Rac8 {[%clk 0:02:01]} 16. Qe1 {[%clk 0:01:24]}  Nc4 {[%clk 0:01:40]} 17. Bxc4 {[%clk 0:01:22]}  Qxc4 {[%clk 0:01:40]} 18. e5 {[%clk 0:01:14]}  Nd5 {[%clk 0:01:39]} 19. Nxd5 {[%clk 0:01:02]}  Bxd5 {[%clk 0:01:39]} 20. Qg3 {[%clk 0:00:50]}  d6 {[%clk 0:01:28]} 21. Bh6 {[%clk 0:00:48]}  g6 {[%clk 0:01:20]} 22. c3 {[%clk 0:00:36]}  dxe5 {[%clk 0:00:57]} 23. Qxe5 {[%clk 0:00:36]}  f6 {[%clk 0:00:55]} 24. Qe1 {[%clk 0:00:25]}  e5 {[%clk 0:00:50]} 25. Nc2 {[%clk 0:00:25]}  Bb7 {[%clk 0:00:44]} 26. Ne3 {[%clk 0:00:18]}  Qc6 {[%clk 0:00:25]} 27. Qe2 {[%clk 0:00:17]}  Bc5 {[%clk 0:00:25]} 28. Nc2 {[%clk 0:00:14]}  Qe6 {[%clk 0:00:24]} 29. Be3 {[%clk 0:00:13]}  Bf8 {[%clk 0:00:23]} 30. Bf2 {[%clk 0:00:09]}  Qf5 {[%clk 0:00:20]} 31. Ne3 {[%clk 0:00:09]}  Qh5 {[%clk 0:00:21]} 32. c4 {[%clk 0:00:06]}  e4 {[%clk 0:00:20]} 33. Nd5 {[%clk 0:00:04]}  exf3 {[%clk 0:00:13]} 34. Nxf6+ {[%clk 0:00:03]}  Kh8 {[%clk 0:00:14]} 35. Qe6 {[%clk 0:00:02]}  fxg2+ {[%clk 0:00:12]} 36. Kg1 {[%clk 0:00:02]}  gxf1=Q+ {[%clk 0:00:12]} 37. Kxf1 {[%clk 0:00:03]}  Rxd1+ {[%clk 0:00:10]} 38. Be1 {[%clk 0:00:02]}  Qf3+ {[%clk 0:00:10]} 39. Kg1 {[%clk 0:00:02]}  Qg2# {[%clk 0:00:11]} 0-1


[Site "https://www.chess.com"]